bitfinex-derivatives/quotes_ETHF0:USTF0_20250422
["timestamp","ask_amount","ask_price","bid_price","bid_amount"]
[1745308530614,7.40390204,1617.5,1617.4,1.23665]
[1745308531219,7.40390204,1617.5,1617.4,5.26545]
[1745308532117,3.2078,1617.5,1617.4,10.26545]
[1745308532418,0.00925155,1617.6,1617.5,1.23657]
[1745308532616,0.00925155,1617.6,1617.5,5.36847]
[1745308532818,0.00925155,1617.6,1617.5,10.36847]
[1745308533218,0.00925155,1617.6,1617.5,5.36847]
[1745308533414,0.00925155,1617.6,1617.5,10.36847]
[1745308534016,0.00925155,1617.6,1617.5,5.36847]
[1745308536719,7.355,1617.9,1617.8,1.23634]
[1745308537031,7.355,1617.9,1617.8,6.69334]
[1745308537723,4.1472,1617.9,1617.8,6.69334]
[1745308538322,3.46235673,1618.2,1618.1,1.23611]
[1745308538516,3.46235673,1618.2,1618.0,1.23614]
[1745308538717,3.2078,1618.1,1618.0,1.23619]
[1745308538919,4.44391,1618.1,1618.0,1.23619]
[1745308539822,8.2078,1618.1,1617.9,1.24545155]
[1745308540122,4.44397,1618.1,1618.0,1.23619]
[1745308540527,9.44397,1618.1,1618.0,1.23619]
[1745308541221,1.23619,1618.0,1617.9,1.24545155]
[1745308541719,3.9268,1618.0,1617.9,1.24545155]
[1745308544535,5.16299,1618.0,1617.9,1.24545155]
[1745308546130,3.9268,1618.0,1617.9,1.24545155]
[1745308546330,0.00925155,1618.2,1618.1,1.23611]
[1745308546525,1.24529155,1618.2,1618.1,1.23611]
[1745308546725,0.00925155,1618.2,1618.1,1.23611]
[1745308547620,4.14485155,1618.2,1618.1,1.23611]
[1745308548724,5.38089155,1618.2,1618.1,1.23611]
[1745308548932,10.38089155,1618.2,1618.1,1.23611]
[1745308549229,4.14485155,1618.2,1618.1,1.23611]
[1745308550429,5.38089155,1618.2,1618.1,1.23611]
[1745308550827,4.14485155,1618.2,1618.1,1.23611]
[1745308552038,5.38089155,1618.2,1618.1,1.23611]
[1745308555119,1.23619,1618.0,1617.0,7.91995382]
[1745308555325,3.2078,1617.6,1617.5,1.23657]
[1745308555832,7.3646,1617.6,1617.5,1.23657]
[1745308560537,8.4501,1617.9,1617.8,1.23634]
[1745308560835,12.5953,1617.9,1617.8,1.23634]
[1745308562325,4.1452,1617.9,1617.8,1.23634]
[1745308562529,3.2078,1618.0,1617.9,1.23626]
[1745308562933,3.2078,1618.0,1617.9,5.37136]
[1745308563339,3.21705155,1618.2,1618.1,1.23611]
[1745308563635,0.00925155,1618.2,1618.1,1.23611]
[1745308563837,0.00925155,1618.2,1618.1,10.37121]
[1745308564926,0.00925155,1618.2,1618.1,8.57901]
[1745308565325,0.00925155,1618.2,1618.1,5.37121]
[1745308565629,0.00925155,1618.2,1618.1,5.8680338]
[1745308566731,0.00925155,1618.2,1618.1,5.37121]
[1745308568330,0.00925155,1618.2,1618.1,8.57901]
[1745308569339,0.00925155,1618.2,1618.1,9.07927477]
[1745308570532,1.55e-06,1618.2,1618.1,9.07927477]
[1745308573134,1.55e-06,1618.2,1618.1,14.07927477]
[1745308573336,4.2623,1618.9,1618.8,1.23558]
[1745308573645,8.5253,1618.9,1618.8,1.23558]
[1745308574043,3.2078,1619.0,1618.9,1.2355]
[1745308574549,3.2078,1619.0,1618.9,6.6785]
[1745308574842,7.4357,1619.0,1618.9,6.6785]
[1745308576044,7.4357,1619.0,1618.9,1.2355]
[1745308576045,12.4357,1619.0,1618.9,1.2355]
[1745308576241,13.67116,1619.0,1618.9,1.2355]
[1745308577446,1.2355,1618.9,1618.8,1.24476155]
[1745308577645,9.4288,1618.9,1618.8,0.00925155]
[1745308577842,14.4288,1618.9,1618.8,1.24483155]
[1745308578041,13.1933,1618.9,1618.8,1.24483155]
[1745308578645,13.1933,1618.9,1618.4,3.08968]
[1745308578847,3.2078,1618.5,1618.4,1.23579]
[1745308579441,15.3401,1618.5,1618.4,1.23579]
[1745308579843,16.57591,1618.5,1618.4,1.23579]
[1745308580351,15.3401,1618.5,1618.4,1.23579]
[1745308581749,16.57591,1618.5,1618.4,1.23579]
[1745308581937,16.57591,1618.5,1618.4,1.23588]
[1745308582141,15.3401,1618.5,1618.4,1.23588]
[1745308582947,16.57591,1618.5,1618.4,1.23588]
[1745308583135,15.3401,1618.5,1618.4,1.23588]
[1745308585147,12.1323,1618.5,1618.4,1.23588]
[1745308587045,12.1323,1618.5,1618.4,6.67888]
[1745308587652,3.95464845,1618.5,1618.4,15.89488]
[1745308587846,3.2078,1618.9,1618.8,1.23558]
[1745308588155,3.2078,1618.9,1618.6,6.17841]
[1745308588156,1.23588,1618.4,1618.3,0.00925155]
[1745308588337,1.23604,1618.2,1617.7,5.4524]
[1745308588542,4.44384,1618.2,1617.7,1.23635]
[1745308588742,4.44384,1618.2,1617.6,4.216]
[1745308588945,3.2078,1618.2,1618.1,1.39059]
[1745308590252,4.0839,1618.3,1618.2,1.23604]
[1745308590448,3.2078,1618.6,1618.5,1.23581]
[1745308591154,4.44353,1618.6,1618.5,1.23581]
[1745308591346,3.2078,1618.6,1618.5,1.23581]
[1745308591644,7.5347,1618.6,1618.5,1.23581]
[1745308591839,11.5017,1618.6,1618.5,1.23581]
[1745308595157,12.73743,1618.6,1618.5,1.23581]
[1745308597156,11.5017,1618.6,1618.5,1.23581]
[1745308598458,12.73743,1618.6,1618.5,1.23581]
[1745308598759,11.5017,1618.6,1618.5,1.23581]
[1745308605265,11.5017,1618.6,1618.4,1.23582]
[1745308605562,3.9942,1618.5,1618.4,1.23588]
[1745308605760,3.2078,1619.4,1618.4,104.658]
[1745308605956,3.9942,1619.4,1619.3,1.2352]
[1745308606157,12.32816658,1619.6,1619.5,1.23504]
[1745308606365,15.53596658,1619.6,1619.1,3.2078]
[1745308606563,3.9942,1619.5,1619.2,7.10329]
[1745308606756,3.9942,1619.5,1619.2,1.23527]
[1745308606757,3.2078,1619.3,1619.2,1.23527]
[1745308607367,3.2078,1619.3,1619.1,0.00925155]
[1745308607557,12.3381,1619.2,1619.1,0.00925155]
[1745308607762,12.3381,1619.2,1619.1,1.24460155]
[1745308608364,3.9942,1619.2,1619.1,1.24460155]
[1745308609069,0.00925155,1619.4,1619.3,1.2352]
[1745308609262,4.24165155,1619.4,1619.3,1.2352]
[1745308609664,0.00925155,1619.4,1619.3,1.2352]
[1745308609864,18.10628389,1620.4,1619.3,1.2352]
[1745308609865,18.10628389,1620.4,1619.4,61.75621]
[1745308610068,20.04855491,1620.5,1620.4,1.23436]
[1745308610266,20.04855491,1620.5,1620.4,4.44216]
[1745308610765,20.04855491,1620.5,1620.3,4.1699]
[1745308610964,25.04855491,1620.5,1620.3,1.24366155]
[1745308611165,15.55901581,1620.4,1619.3,3.2078]
[1745308611467,3.2078,1620.2,1620.1,1.23459]
[1745308614275,7.4557,1620.4,1620.3,1.23443]
[1745308614766,12.4557,1620.4,1620.3,1.23443]
[1745308614966,16.5861,1620.4,1620.2,1.23447]
[1745308615266,16.5861,1620.4,1620.3,1.23443]
[1745308615267,11.5861,1620.4,1620.3,1.23443]
[1745308615668,16.5861,1620.4,1620.3,1.23443]
[1745308615972,11.5861,1620.4,1620.3,1.23443]
[1745308616771,12.82046,1620.4,1620.3,1.23443]
[1745308616968,17.92729338,1620.4,1620.3,1.23443]
[1745308617169,16.69293338,1620.4,1620.3,1.23443]
[1745308617471,16.5861,1620.4,1620.3,1.23443]
[1745308617678,17.82046,1620.4,1620.3,1.23443]
[1745308617880,1.23447,1620.3,1620.2,1.23449]
[1745308618078,4.1605,1620.3,1620.2,1.23449]
[1745308618787,1.23459,1620.1,1620.0,0.00925155]
[1745308619079,4.44239,1620.1,1620.0,1.24391155]
[1745308619271,9.44239,1620.1,1620.0,1.24391155]
[1745308619471,7.3683,1620.1,1620.0,1.24391155]
[1745308619872,11.3416,1620.1,1620.0,1.24391155]
[1745308620271,11.44845372,1620.1,1620.0,1.24391155]
[1745308620673,11.3416,1620.1,1620.0,1.24391155]
[1745308623384,15.3341,1620.1,1620.0,1.24391155]
[1745308624681,6.64533,1620.5,1620.4,1.23436]
[1745308624981,6.64533,1620.5,1620.2,3.08618]
[1745308624982,5.57438,1620.3,1620.2,1.23451]
[1745308625180,8.78218,1620.3,1620.2,1.23451]
[1745308625684,7.5477,1620.3,1620.2,1.23451]
[1745308626584,4.3399,1620.3,1620.2,1.23451]
[1745308627076,4.3399,1620.3,1620.2,5.25761]
[1745308627282,4.3077,1620.5,1620.4,1.23436]
[1745308627476,3.98725155,1620.6,1620.5,1.23428]
[1745308627784,0.00925155,1620.6,1620.5,1.23428]
[1745308627980,3.98725155,1620.6,1620.5,1.23428]
[1745308628371,0.00925155,1620.6,1620.5,1.23428]
[1745308628777,1.23442,1620.4,1620.3,1.23441]
[1745308628973,1.23443,1620.3,1620.2,5.25755]
[1745308629178,1.23443,1620.3,1620.2,1.23445]
[1745308629486,1.23441,1620.4,1620.3,1.2344]
[1745308629678,4.161,1620.4,1620.3,1.2344]
[1745308631287,5.39536,1620.4,1620.3,1.2344]
[1745308631483,4.161,1620.4,1620.3,1.2344]
[1745308632083,5.39536,1620.4,1620.3,1.2344]
[1745308632280,4.161,1620.4,1620.3,1.2344]
[1745308632789,5.39536,1620.4,1620.3,1.2344]
[1745308633085,4.161,1620.4,1620.3,1.2344]
[1745308633688,7.3688,1620.4,1620.3,1.23443]
[1745308633886,4.1725,1620.5,1620.4,1.23436]
[1745308634086,8.2146,1620.5,1620.4,1.23436]
[1745308634785,1.23436,1620.4,1620.3,5.4065]
[1745308635088,1.23448,1620.3,1620.2,1.23445]
[1745308635388,5.54188,1620.3,1620.2,1.23445]
[1745308635590,9.58398,1620.3,1620.2,1.23445]
[1745308635886,8.3495,1620.3,1620.1,3.2078]
[1745308636087,4.0533,1620.2,1620.1,4.44239]
[1745308636290,1.23489,1619.7,1619.6,1.46136]
[1745308636689,1.23488,1619.8,1619.7,1.23486]
[1745308637282,1.23477,1619.9,1619.8,1.23475]
[1745308637581,3.2078,1619.9,1619.6,0.23567155]
[1745308637780,1.23481,1619.8,1619.7,1.23487]
[1745308637981,5.33917,1619.8,1619.7,1.23489]
[1745308638481,1.23489,1619.7,1619.6,0.23567155]
[1745308638687,8.45879,1619.7,1619.6,0.23567155]
[1745308639989,8.56567035,1619.7,1619.6,0.23567155]
[1745308640389,8.45879,1619.7,1619.6,0.23567155]
[1745308640684,8.45879,1619.7,1619.6,1.47064155]
[1745308640888,8.45879,1619.7,1619.6,0.23567155]
[1745308641290,8.45879,1619.7,1619.6,1.47064155]
[1745308641586,8.45879,1619.7,1619.6,0.23567155]
[1745308642097,18.97666985,1619.7,1619.6,0.23567155]
[1745308642591,13.97666985,1619.7,1619.6,0.23567155]
[1745308643189,13.9766745,1619.7,1619.6,0.23567155]
[1745308643388,18.9766745,1619.7,1619.6,0.23567155]
[1745308643591,13.9766745,1619.7,1619.6,0.23567155]
[1745308643780,18.9766745,1619.7,1619.6,0.23567155]
[1745308643985,13.9766745,1619.7,1619.6,0.23567155]
[1745308644787,13.97667982,1619.7,1619.6,0.23567155]
[1745308647988,13.86979,1619.7,1619.6,0.23567155]
[1745308648293,1.23504,1619.5,1619.4,1.23512]
[1745308648492,4.44284,1619.5,1619.4,1.23512]
[1745308648993,4.44284,1619.5,1619.4,5.24712]
[1745308649386,4.44284,1619.5,1619.4,1.23512]
[1745308650590,8.58304,1619.5,1619.4,1.23512]
[1745308650788,4.44284,1619.5,1619.4,1.23512]
[1745308650989,3.2078,1619.5,1619.4,5.48962]
[1745308652194,3.2078,1619.5,1619.4,9.59862]
[1745308654302,3.31528852,1620.9,1619.4,18.7635]
[1745308654489,3.2078,1620.5,1620.2,1.2345]
[1745308654798,3.08552,1620.6,1620.3,1.23443]
[1745308654799,4.0996,1620.4,1620.3,1.23443]
[1745308655495,3.08504,1620.9,1620.3,1.23443]
[1745308655496,3.2078,1621.3,1620.3,8.2078]
[1745308655691,3.2078,1620.9,1620.5,3.2078]
[1745308655890,11.23759,1621.3,1620.6,4.2781]
[1745308655891,3.2078,1621.1,1620.6,4.2781]
[1745308656086,1.23393,1621.0,1620.8,1.23399]
[1745308656293,4.0996,1620.9,1620.8,1.23399]
[1745308657600,5.33358,1620.9,1620.8,1.23399]
[1745308657898,4.0996,1620.9,1620.8,1.23399]
[1745308658600,3.08549,1620.7,1620.2,0.00925155]
[1745308658792,9.0996,1620.9,1620.2,0.00925155]
[1745308658793,3.2078,1620.5,1620.2,1.24371155]
[1745308658991,1.23443,1620.3,1620.2,0.00925155]
[1745308659194,5.40272,1620.4,1620.2,5.26806155]
[1745308659589,5.40272,1620.4,1620.3,1.23443]
[1745308660301,4.1683,1620.4,1620.3,1.23443]
[1745308661798,9.5884,1620.6,1620.5,1.23428]
[1745308662001,14.8102,1620.6,1620.5,1.23428]
[1745308662200,13.576,1620.6,1620.5,1.23428]
[1745308662402,5.399,1620.6,1620.5,1.23428]
[1745308663291,9.6552,1620.6,1620.5,1.23428]
[1745308663901,10.8894,1620.6,1620.5,1.23428]
[1745308664196,10.8894,1620.6,1620.4,4.0474]
[1745308664394,1.23428,1620.5,1620.4,1.23429]
[1745308664602,1.23437,1620.4,1620.3,5.56507]
[1745308665098,1.23437,1620.4,1620.3,1.23437]
[1745308665294,1.23441,1620.4,1620.3,1.2344]
[1745308665799,5.49061,1620.4,1620.3,1.2344]
[1745308666793,4.2562,1620.4,1620.3,1.2344]
[1745308666999,4.2562,1620.4,1620.3,5.6126]
[1745308667701,5.49056,1620.4,1620.3,5.6126]
[1745308667902,6.63327,1620.6,1620.5,1.23428]
[1745308668103,10.88238876,1620.6,1620.5,1.23428]
[1745308668501,1.23428,1620.5,1620.4,5.6125]
[1745308668700,5.37658,1620.5,1620.4,5.6125]
[1745308669201,5.37658,1620.5,1620.4,4.3782]
[1745308669404,5.37658,1620.5,1620.4,5.61256]
[1745308670002,4.44193,1620.7,1620.6,1.2342]
[1745308670203,1.2342,1620.6,1620.5,4.2611]
[1745308670403,1.23434,1620.5,1620.4,1.23432]
[1745308670603,5.60074,1620.5,1620.4,5.49542]
[1745308670905,1.23426,1620.6,1620.5,1.23424]
[1745308671108,1.23426,1620.6,1620.5,5.49534]
[1745308671908,1.23426,1620.6,1620.5,1.23424]
[1745308673609,1.23426,1620.6,1620.4,4.2611]
[1745308673610,1.23428,1620.5,1620.4,5.4954]
[1745308674308,1.23428,1620.5,1620.4,1.2343]
[1745308674503,1.23443,1620.3,1620.2,4.45150155]
[1745308674903,9.73832,1620.4,1620.3,1.23443]
[1745308675200,9.73832,1620.4,1620.3,5.23243]
[1745308676709,9.73832,1620.4,1620.3,1.23443]
[1745308676905,1.23443,1620.3,1620.2,0.00925155]
[1745308677111,1.23474,1620.0,1619.7,3.08719]
[1745308677312,1.23473,1620.0,1619.9,1.23471]
[1745308677511,1.23477,1619.9,1619.8,1.23476]
[1745308677714,1.23477,1619.9,1619.8,5.55586]
[1745308677908,1.23477,1619.9,1619.8,4.3211]
[1745308678108,1.23477,1619.9,1619.8,5.55591]
[1745308678618,5.60227,1619.9,1619.8,5.55591]
[1745308679618,5.60227,1619.9,1619.8,4.3211]
[1745308679910,1.23481,1619.8,1619.7,0.00925155]
[1745308680111,1.23504,1619.5,1619.4,7.2132]
[1745308680417,1.23504,1619.5,1619.4,12.72952]
[1745308680915,5.60254,1619.6,1619.5,1.23504]
[1745308681115,5.60254,1619.6,1619.5,5.51624]
[1745308682617,1.23487,1619.8,1619.7,1.23486]
[1745308682818,5.44317,1619.8,1619.7,1.23486]
[1745308683020,1.23487,1619.8,1619.7,1.23486]
[1745308683222,1.23487,1619.8,1619.7,5.24986]
[1745308683818,1.23487,1619.8,1619.7,4.015]
[1745308684017,5.44317,1619.8,1619.7,4.015]
[1745308684520,5.44317,1619.8,1619.7,5.24989]
[1745308684709,5.44317,1619.8,1619.7,4.015]
[1745308685118,3.08731,1619.7,1619.4,3.21705155]
[1745308685422,1.23504,1619.5,1619.4,0.00925155]
[1745308686224,1.23504,1619.5,1619.4,1.24437155]
[1745308689519,5.55924,1619.5,1619.4,0.00925155]
[1745308690526,5.55924,1619.5,1619.4,1.24437155]
[1745308690726,5.55924,1619.5,1619.4,0.00925155]
[1745308691420,5.55924,1619.5,1619.4,1.24437155]
[1745308691726,5.55924,1619.5,1619.4,0.00925155]
[1745308698531,1.2352,1619.3,1619.2,3.2078]
[1745308698734,1.2355,1619.0,1618.9,1.23548]
[1745308701532,1.2355,1619.0,1618.9,5.23568]
[1745308702444,1.2355,1619.0,1618.9,8.44348]
[1745308703938,0.00925155,1619.1,1619.0,1.23542]
[1745308704144,0.00925155,1619.1,1619.0,5.48352]
[1745308704346,0.00925155,1619.1,1619.0,10.48352]
[1745308705045,0.00925155,1619.1,1619.0,5.48352]
[1745308705836,1.24460155,1619.1,1619.0,4.2481]
[1745308706440,1.24460155,1619.1,1619.0,5.48352]
[1745308707742,1.23542,1619.0,1618.9,3.2078]
[1745308707942,5.37332,1619.0,1618.9,3.2078]
[1745308708340,9.44824155,1619.1,1619.0,1.23542]
[1745308708637,9.44824155,1619.1,1619.0,5.44412]
[1745308709841,13.87534155,1619.1,1619.0,5.44412]
[1745308711344,13.87534155,1619.1,1619.0,8.65192]
[1745308711537,1.23574,1618.7,1618.6,3.2078]
[1745308711740,3.08879,1618.9,1618.4,3.2078]
[1745308711945,1.23565,1618.7,1618.6,4.44346]
[1745308712145,11.30131155,1619.1,1618.8,3.08895]
[1745308712346,14.83725155,1619.1,1619.0,1.23542]
[1745308712542,4.05855155,1619.1,1619.0,4.44322]
[1745308712747,0.00925155,1619.1,1619.0,4.44322]
[1745308712947,0.00925155,1619.1,1619.0,8.83362]
[1745308715849,1.23493,1619.7,1619.3,1.2352]
[1745308716053,1.23486,1619.8,1619.7,1.23484]
[1745308716255,19.13781,1619.9,1619.8,1.23481]
[1745308716552,4.0855,1619.8,1619.7,1.23483]
[1745308716852,5.32031,1619.8,1619.7,1.23483]
[1745308719546,0.00925155,1619.9,1619.8,1.23481]
[1745308719748,0.00925155,1619.9,1619.8,4.44261]
[1745308720257,4.1698,1620.2,1620.1,1.23459]
[1745308720457,4.1698,1620.2,1620.1,4.44239]
[1745308721753,4.1698,1620.2,1620.1,8.78049]
[1745308721949,4.30895155,1620.3,1620.2,1.23451]
[1745308722258,4.30895155,1620.3,1620.2,5.57261]
[1745308722646,9.97608155,1620.3,1620.2,1.23451]
[1745308722851,1.23451,1620.2,1620.1,4.44239]
[1745308723052,4.4327,1620.2,1620.1,4.44239]
[1745308723259,4.4327,1620.2,1620.1,8.78049]
[1745308723447,5.66721,1620.2,1620.1,8.78049]
[1745308723647,1.23466,1620.0,1619.9,4.44253]
[1745308723859,5.47543,1620.1,1620.0,1.23466]
[1745308724459,4.2408,1620.1,1620.0,4.44246]
[1745308724752,5.47539,1620.1,1620.0,4.44246]
[1745308726058,1.23472,1620.0,1619.9,1.2347]
[1745308726252,1.23474,1619.9,1619.8,45.24261]
[1745308726461,5.47894,1619.9,1619.8,45.24261]
[1745308726658,9.71974,1619.9,1619.8,45.24261]
[1745308726958,9.71974,1619.9,1619.8,4.44261]
[1745308727153,9.71974,1619.9,1619.8,3.2078]
[1745308727364,8.485,1619.9,1619.8,4.44261]
[1745308727963,9.71974,1619.9,1619.8,4.44261]
[1745308728664,8.485,1619.9,1619.8,4.44261]
[1745308728867,9.71974,1619.9,1619.8,4.44261]
[1745308729957,9.71974,1619.9,1619.8,3.2078]
[1745308730661,9.71974,1619.9,1619.8,4.44261]
[1745308731558,9.71974,1619.9,1619.8,8.53451]
[1745308731758,9.71974,1619.9,1619.8,7.2997]
[1745308731961,9.71974,1619.9,1619.8,8.53451]
[1745308732663,9.71974,1619.9,1619.8,7.2997]
[1745308732865,9.71974,1619.9,1619.8,3.2078]
[1745308733758,1.23481,1619.8,1619.7,40.8]
[1745308733955,1.23489,1619.7,1619.6,8.86535155]
[1745308734363,5.60859,1619.7,1619.6,8.86535155]
[1745308734565,5.60859,1619.7,1619.6,49.66535155]
[1745308734955,5.60859,1619.7,1619.6,44.01705155]
[1745308735160,9.64459,1619.7,1619.6,45.25202155]
[1745308735463,9.64459,1619.7,1619.6,4.45202155]
[1745308735762,9.64459,1619.7,1619.6,8.86542155]
[1745308737167,3.2078,1620.2,1619.6,8.86542155]
[1745308737369,1.23474,1620.0,1619.9,1.23469]
[1745308737665,1.23474,1620.0,1619.9,5.26179]
[1745308737867,1.23474,1619.9,1619.8,8.82675]
[1745308738165,5.62434,1619.9,1619.8,12.85385]
[1745308739961,1.23481,1619.8,1619.7,1.23485]
[1745308740265,1.23489,1619.7,1619.6,4.45198155]
[1745308740466,8.4299,1619.8,1619.7,1.23489]
[1745308740662,4.1778,1619.8,1619.7,1.23489]
[1745308740869,4.1778,1619.8,1619.7,5.35189]
[1745308741070,5.41261,1619.8,1619.7,5.35189]
[1745308742071,5.41261,1619.8,1619.7,1.23489]
[1745308742566,4.1778,1619.8,1619.7,1.23489]
[1745308742766,5.41261,1619.8,1619.7,5.76129]
[1745308743768,4.1778,1619.8,1619.7,5.76129]
[1745308743974,5.41261,1619.8,1619.7,5.76129]
[1745308744366,4.1778,1619.8,1619.7,5.76129]
[1745308744576,5.41261,1619.8,1619.7,5.76129]
[1745308745071,4.1778,1619.8,1619.7,5.76129]
[1745308745274,9.88672,1620.0,1619.9,1.23474]
[1745308745479,14.47692,1620.0,1619.9,1.23474]
[1745308745862,1.2348,1619.9,1619.8,1.23475]
[1745308746168,5.825,1619.9,1619.8,1.23475]
[1745308747569,5.82494,1619.9,1619.8,1.23475]
[1745308747970,5.82494,1619.9,1619.8,5.64515]
[1745308749183,4.5902,1619.9,1619.8,5.64515]
[1745308749476,4.3999,1620.0,1619.9,1.23474]
[1745308749679,8.7049,1620.0,1619.9,5.83664]
[1745308749874,6.60859,1620.1,1620.0,1.23466]
[1745308750074,5.374,1620.1,1620.0,5.83656]
[1745308750271,14.60026,1620.2,1620.1,1.23459]
[1745308751280,14.60026,1620.2,1620.1,5.80319]
[1745308751473,14.60026,1620.2,1620.1,4.5686]
[1745308751672,1.23459,1620.1,1620.0,10.131]
[1745308751875,5.73929,1620.1,1620.0,10.131]
[1745308752180,1.23466,1620.0,1619.9,1.23469]
[1745308752477,1.23462,1620.1,1620.0,1.23459]
[1745308752881,5.73932,1620.1,1620.0,5.80319]
[1745308753175,5.73932,1620.1,1620.0,4.5686]
[1745308753380,5.73932,1620.1,1620.0,5.80326]
[1745308754380,5.73932,1620.1,1620.0,4.5686]
[1745308754683,5.73932,1620.1,1620.0,5.80326]
[1745308754881,1.23471,1620.0,1619.9,1.23467]
[1745308755073,5.64871,1620.0,1619.9,5.79817]
[1745308755879,1.23474,1619.9,1619.8,13.59776]
[1745308756076,5.64874,1619.9,1619.8,3.2078]
[1745308756272,9.93594,1619.9,1619.8,3.2078]
[1745308756477,1.23489,1619.7,1619.6,0.00925155]
[1745308756681,4.44269,1619.7,1619.6,0.00925155]
[1745308757184,8.85669,1619.7,1619.6,0.00925155]
[1745308757381,3.08742,1619.6,1619.0,3.2078]
[1745308757586,1.23524,1619.3,1619.2,1.23524]
[1745308757883,1.23524,1619.3,1619.2,42.03524]
[1745308758888,5.49184,1619.3,1619.2,42.03524]
[1745308759082,0.00925155,1619.4,1619.3,1.2352]
[1745308759388,0.00925155,1619.4,1619.3,10.0284]
[1745308759586,0.00925155,1619.4,1619.3,15.0284]
[1745308759881,4.6498,1619.8,1619.7,1.23489]
[1745308760084,3.2078,1619.9,1619.8,1.23481]
[1745308760480,7.4381,1619.9,1619.8,1.23481]
[1745308761087,7.4381,1619.9,1619.7,5.56749]
[1745308761289,5.46511,1619.8,1619.7,4.3326]
[1745308761580,1.23481,1619.8,1619.7,5.56742]
[1745308761786,8.67289,1619.9,1619.8,1.23481]
[1745308761987,8.67289,1619.9,1619.8,5.56741]
[1745308762490,3.2078,1619.9,1619.8,5.56741]
[1745308762788,4.44254,1619.9,1619.8,5.56741]
[1745308762984,3.2078,1619.9,1619.8,5.56741]
[1745308763288,4.44254,1619.9,1619.8,5.56741]
[1745308763591,3.2078,1619.9,1619.8,5.56741]
[1745308764289,0.00925155,1620.0,1619.9,1.23474]
[1745308764588,0.00925155,1620.0,1619.9,13.50634]
[1745308767892,1.24391155,1620.0,1619.9,9.08174]
[1745308768087,5.77391155,1620.0,1619.9,5.87394]
[1745308769888,4.53925155,1620.0,1619.9,5.87394]
[1745308770088,5.77391155,1620.0,1619.9,5.87394]
[1745308776498,4.53925155,1620.0,1619.9,5.87394]
[1745308776694,0.00925155,1620.0,1619.9,5.87394]
[1745308777497,1.0,2266.0,1619.9,5.87394]
[1745308777498,4.44179,1620.9,1620.0,3.08666]
[1745308777803,4.44168,1621.1,1620.9,1.23395]
[1745308778002,4.2791,1621.0,1620.9,1.23395]
[1745308778503,3.2078,1621.1,1621.0,1.2339]
[1745308778698,4.5216,1621.2,1621.1,1.23382]
[1745308779198,10.76460155,1621.2,1621.1,1.23382]
[1745308779500,4.53085155,1621.2,1621.1,1.23382]
[1745308779798,4.53085155,1621.2,1621.0,5.55444]
[1745308779998,4.53085155,1621.2,1621.1,1.23382]
[1745308780603,5.76460155,1621.2,1621.1,1.23382]
[1745308780797,4.53085155,1621.2,1621.1,1.23382]
[1745308781294,5.76460155,1621.2,1621.0,4.3206]
[1745308781502,4.53085155,1621.2,1621.1,1.23382]
[1745308781703,0.00925155,1621.2,1621.1,1.23382]
[1745308782699,0.00925155,1621.2,1621.1,5.68352]
[1745308783211,1.23382,1621.1,1621.0,10.02267]
[1745308783412,0.00925155,1621.2,1621.1,1.23382]
[1745308783615,0.00925155,1621.2,1621.1,5.68352]
[1745308783907,1.24300155,1621.2,1621.1,5.68352]
[1745308784106,0.00925155,1621.2,1621.1,5.68352]
[1745308784506,1.2339,1621.0,1620.9,3.2078]
[1745308784708,1.23398,1620.9,1620.8,40.80925155]
[1745308785604,7.6034,1621.1,1620.9,1.23394]
[1745308785799,7.6034,1621.1,1621.0,1.2339]
[1745308786107,1.23398,1620.9,1620.8,40.80925155]
[1745308786901,1.23436,1620.4,1620.3,1.543]
[1745308787098,4.4125,1620.8,1620.3,6.1319]
[1745308787300,1.23415,1620.7,1620.6,1.23415]
[1745308787809,1.23398,1620.9,1620.8,1.23405]
[1745308788002,1.23405,1620.8,1620.7,4.5474]
[1745308788311,1.23403,1620.9,1620.8,1.23404]
[1745308788501,18.39952,1621.1,1620.7,4.5474]
[1745308788698,1.23405,1620.8,1620.7,5.78145]
[1745308789304,1.23404,1620.9,1620.8,1.23403]
[1745308789513,1.23405,1620.8,1620.7,5.78146]
[1745308790014,1.23405,1620.8,1620.7,1.23406]
[1745308790512,1.23413,1620.7,1620.6,5.79083155]
[1745308790805,1.23413,1620.7,1620.6,4.55665155]
[1745308791007,1.23413,1620.7,1620.6,1.24345155]
[1745308791214,1.23413,1620.7,1620.6,0.00925155]
[1745308793213,4.44193,1620.7,1620.6,0.00925155]
[1745308793808,1.23443,1620.3,1620.2,5.34]
[1745308794009,6.17178,1620.5,1620.1,3.2078]
[1745308794010,1.23451,1620.2,1620.1,1.23459]
[1745308794204,3.08589,1620.5,1619.9,4.3202]
[1745308794205,3.08627,1620.3,1619.9,4.3202]
[1745308794407,1.2346,1620.1,1620.0,1.23459]
[1745308794615,1.2346,1620.1,1620.0,5.85379]
[1745308795114,1.24382155,1620.2,1620.1,1.23456]
[1745308795315,13.65282155,1620.2,1620.1,1.23456]
[1745308796113,9.21045155,1620.2,1620.0,5.85379]
[1745308796312,1.23465,1620.1,1619.9,7.53725155]
[1745308797316,9.21045155,1620.2,1619.9,0.00925155]
[1745308797511,1.23466,1620.0,1619.9,5.57335155]
[1745308797708,1.23466,1620.1,1620.0,1.23465]
[1745308798011,1.23466,1620.0,1619.9,5.57337155]
[1745308798719,1.23466,1620.0,1619.9,0.00925155]
[1745308798917,1.23466,1620.0,1619.9,1.24399155]
[1745308799711,1.23466,1620.0,1619.9,0.00925155]
[1745308799915,1.23466,1620.0,1619.9,1.24399155]
[1745308800116,1.23466,1620.0,1619.9,3.21705155]
[1745308800421,1.23503,1619.6,1619.5,1.23501]
[1745308800623,1.23503,1619.6,1619.5,5.60551]